bitfinex/quotes_SOLUSD_20250912
["timestamp","ask_amount","ask_price","bid_price","bid_amount"]
[1757702204749,0.14216157,241.01,240.98,0.66]
[1757702204750,32.22,241.01,240.98,0.66]
[1757702205258,4.14886113,241.03,240.98,0.66]
[1757702208153,0.06,241.07,240.99,13.59559401]
[1757702208453,0.06,241.07,241.04,26.0]
[1757702208758,0.06,241.07,241.05,0.66]
[1757702209749,0.06,241.07,241.06,13.59559401]
[1757702210134,0.06,241.07,241.06,0.66]
[1757702218063,0.06,241.07,241.06,0.9101]
[1757702219663,0.06,241.07,241.06,46.72569401]
[1757702219850,0.06,241.07,241.06,46.04569401]
[1757702220041,0.06,241.07,241.06,0.2501]
[1757702220241,0.75,241.07,241.06,0.2501]
[1757702220450,4.89817272,241.07,241.06,0.2501]
[1757702220862,0.06,241.07,241.06,0.2501]
[1757702221364,4.20817272,241.07,241.06,0.2501]
[1757702221572,4.89817272,241.07,241.06,0.2501]
[1757702221780,4.20817272,241.07,241.06,0.2501]
[1757702223346,0.06,241.07,241.06,0.2501]
[1757702223579,0.06,241.07,241.06,0.9001]
[1757702227874,0.06,241.07,241.06,0.2501]
[1757702229774,0.06,241.07,241.06,0.9001]
[1757702233664,0.06,241.07,241.06,0.2501]
[1757702234280,0.06,241.07,241.06,33.5001]
[1757702235165,0.06,241.07,241.06,32.8501]
[1757702235378,0.06,241.07,241.06,33.5001]
[1757702238455,0.06,241.07,241.06,33.4801]
[1757702242484,0.06,241.07,241.06,0.9001]
[1757702242774,0.06,241.07,241.06,32.8501]
[1757702242981,0.06,241.07,241.06,33.5001]
[1757702244081,0.06,241.07,241.06,32.8501]
[1757702244987,0.06,241.07,241.06,33.5501]
[1757702246783,0.06,241.07,241.06,0.2501]
[1757702246987,0.06,241.07,241.06,32.8301]
[1757702247497,0.06,241.07,241.06,0.2501]
[1757702247689,0.06,241.07,241.06,32.8101]
[1757702248273,0.06,241.07,241.06,33.5301]
[1757702251396,0.06,241.07,241.06,47.12569401]
[1757702252168,0.06,241.07,241.06,14.56569401]
[1757702252373,0.06,241.07,241.06,47.08569401]
[1757702255566,0.06,241.07,241.06,46.34569401]
[1757702255770,0.06,241.07,241.06,47.06569401]
[1757702258992,0.06,241.07,241.06,0.2501]
[1757702259202,0.06,241.07,241.06,33.4501]
[1757702261085,0.06,241.07,241.06,47.04569401]
[1757702261374,0.06,241.07,241.06,46.28569401]
[1757702262369,0.06,241.07,241.06,47.00569401]
[1757702262575,0.06,241.07,241.06,33.4101]
[1757702263487,0.06,241.07,241.06,32.6901]
[1757702263796,0.06,241.07,241.06,33.4101]
[1757702264471,0.06,241.07,241.06,33.3901]
[1757702264671,0.06,241.07,241.06,32.6701]
[1757702265185,0.06,241.07,241.06,33.3901]
[1757702266076,2.85523841,241.07,241.06,46.98569401]
[1757702267691,0.06,241.07,241.06,46.98569401]
[1757702268098,2.85594284,241.07,241.06,46.98569401]
[1757702269199,2.85594284,241.07,241.06,0.2501]
[1757702269400,2.85594284,241.07,241.06,32.6501]
[1757702269580,3.57594284,241.07,241.06,32.6501]
[1757702269801,2.85594284,241.07,241.06,32.6501]
[1757702283020,3.56594284,241.07,241.06,0.2501]
[1757702283198,7.71411556,241.07,241.06,0.2501]
[1757702285299,11.32879854,241.07,241.06,0.2501]
[1757702285613,7.85627713,241.07,241.06,0.2501]
[1757702288121,11.89851039,241.07,241.06,0.2501]
[1757702288314,0.14216157,241.06,241.04,0.03]
[1757702288506,7.5481761,241.05,241.04,0.03]
[1757702289212,7.69033767,241.05,241.04,0.03]
[1757702289404,11.83885457,241.05,241.04,0.03]
[1757702289605,7.79662131,241.05,241.04,0.03]
[1757702295205,7.08662131,241.05,241.04,0.03]
[1757702295406,0.06,241.07,241.04,0.7]
[1757702295826,0.06,241.07,241.05,0.67]
[1757702296316,4.20819252,241.07,241.06,0.67]
[1757702296700,0.06,241.07,241.06,0.67]
[1757702297300,4.20817272,241.07,241.06,0.67]
[1757702298426,0.06,241.07,241.06,0.67]
[1757702300443,4.20817272,241.07,241.06,0.67]
[1757702302634,4.20817272,241.07,241.04,0.03]
[1757702302822,4.20817272,241.07,241.04,0.7]
[1757702303322,14.57860454,241.07,241.04,0.03]
[1757702303516,14.57860454,241.07,241.05,0.67]
[1757702303716,4.20817272,241.07,241.05,0.65]
[1757702303945,0.06,241.07,241.05,0.65]
[1757702304633,4.2082041,241.07,241.06,0.65]
[1757702304811,4.2082041,241.07,241.04,0.03]
[1757702305416,0.06,241.07,241.05,0.65]
[1757702308136,0.06,241.07,241.04,0.03]
[1757702308346,4.208187,241.07,241.04,0.68]
[1757702309625,0.06,241.07,241.04,0.68]
[1757702310533,0.06,241.07,241.05,0.65]
[1757702310930,0.06,241.07,241.06,0.65]
[1757702311919,0.06,241.07,241.04,0.03]
[1757702311920,0.14216157,241.06,241.04,0.03]
[1757702312120,7.68033767,241.05,241.04,0.03]
[1757702313750,11.82885457,241.05,241.04,0.03]
[1757702313944,15.3168371,241.05,241.04,0.03]
[1757702315324,39.4891912,241.05,241.04,0.03]
[1757702315623,26.0,241.02,241.01,0.03]
[1757702315936,28.93810441,241.02,241.01,0.03]
[1757702316728,30.59864782,241.02,241.01,0.03]
[1757702317628,42.97165031,241.02,241.01,0.03]
[1757702318135,42.27165031,241.02,241.01,0.03]
[1757702318339,34.74768109,241.02,241.01,0.03]
[1757702319040,7.08713768,241.02,241.01,0.03]
[1757702319247,4.29119484,241.02,241.01,0.68]
[1757702319437,7.08713768,241.02,241.01,0.68]
[1757702319637,4.29119484,241.02,241.01,0.68]
[1757702319840,7.08713768,241.02,241.01,0.03]
[1757702320143,4.29119484,241.02,241.01,0.03]
[1757702320565,7.08713768,241.02,241.01,0.03]
[1757702320740,4.29119484,241.02,241.01,0.03]
[1757702320945,7.08713768,241.02,241.01,0.03]
[1757702321247,4.29119484,241.02,241.01,0.03]
[1757702321452,7.08713768,241.02,241.01,0.03]
[1757702321652,4.29119484,241.02,241.01,0.03]
[1757702321829,7.08713768,241.02,241.01,0.03]
[1757702322453,4.29119484,241.02,241.01,0.03]
[1757702322655,7.08713768,241.02,241.01,0.03]
[1757702322851,4.29119484,241.02,241.01,0.03]
[1757702323041,7.08713768,241.02,241.01,0.03]
[1757702326545,7.08713768,241.02,241.01,0.71]
[1757702330050,7.08713768,241.02,241.01,0.03]
[1757702332057,7.08713768,241.02,241.01,0.71]
[1757702332253,4.29119484,241.02,241.01,0.71]
[1757702332442,4.14903327,241.02,241.01,0.71]
[1757702332634,4.14887116,241.03,241.01,0.71]
[1757702332836,2.79594284,241.04,241.01,0.71]
[1757702333068,4.14859403,241.05,241.01,0.71]
[1757702333252,2.79594284,241.05,241.01,0.71]
[1757702333464,2.79594284,241.04,241.01,0.71]
[1757702333775,2.79594284,241.03,241.01,0.71]
[1757702333937,2.79594284,241.05,241.01,0.71]
[1757702334252,2.79594284,241.04,241.01,0.71]
[1757702334452,2.79594284,241.05,241.01,0.71]
[1757702334649,2.79594284,241.04,241.01,0.71]
[1757702334847,4.14837061,241.06,241.01,0.71]
[1757702334848,2.79594284,241.05,241.01,0.71]
[1757702335057,2.79594284,241.04,241.01,0.71]
[1757702335357,2.79594284,241.05,241.01,0.71]
[1757702335659,2.79594284,241.04,241.01,0.71]
[1757702335846,4.14869685,241.04,241.01,0.71]
[1757702336237,6.94463969,241.04,241.01,0.71]
[1757702336438,6.9443041,241.06,241.01,0.71]
[1757702336652,2.79594284,241.05,241.01,0.71]
[1757702336853,2.79594284,241.04,241.01,0.71]
[1757702337055,2.79594284,241.05,241.01,0.71]
[1757702337462,6.94462811,241.05,241.01,0.71]
[1757702337659,4.14868527,241.05,241.01,0.71]
[1757702338059,6.94462811,241.05,241.02,0.67]
[1757702338259,4.14868527,241.05,241.01,0.03]
[1757702338559,2.79594284,241.04,241.01,0.03]
[1757702338865,2.79594284,241.03,241.01,0.03]
[1757702339040,2.79594284,241.04,241.01,0.7]
[1757702339240,2.79594284,241.03,241.01,0.7]
[1757702339454,2.79594284,241.04,241.01,0.7]
[1757702339663,4.14903327,241.02,241.01,0.7]
[1757702340352,4.14903327,241.02,241.01,0.03]
[1757702341870,4.14886113,241.03,241.01,0.7]
[1757702343343,6.94480397,241.03,241.01,0.7]
[1757702343560,4.14886113,241.03,241.01,0.7]
[1757702343764,6.94480397,241.03,241.01,0.7]
[1757702343966,4.14886113,241.03,241.01,0.7]
[1757702344267,6.94480397,241.03,241.01,0.7]
[1757702344479,4.14886113,241.03,241.01,0.7]
[1757702344650,6.94480397,241.03,241.01,0.7]
[1757702344852,4.14886113,241.03,241.01,0.7]
[1757702345157,6.94480397,241.03,241.01,0.7]
[1757702345358,4.14886113,241.03,241.01,0.7]
[1757702345671,6.94480397,241.03,241.01,0.7]
[1757702345872,4.14886113,241.03,241.02,0.67]
[1757702346181,6.94480397,241.03,241.01,0.03]
[1757702346367,4.14886113,241.03,241.01,0.7]
[1757702346677,6.94480397,241.03,241.01,0.7]
[1757702346876,4.14886113,241.03,241.01,0.7]
[1757702347166,6.94480397,241.03,241.01,0.7]
[1757702347368,4.14886113,241.03,241.01,0.7]
[1757702347571,6.94480397,241.03,241.01,0.7]
[1757702347765,4.14886113,241.03,241.01,0.7]
[1757702347971,6.94480397,241.03,241.01,0.7]
[1757702348176,2.79594284,241.02,241.01,0.7]
[1757702348385,6.94497611,241.02,241.01,0.7]
[1757702348687,4.14903327,241.02,241.01,0.7]
[1757702349172,6.94497611,241.02,241.01,0.7]
[1757702349562,6.94497611,241.02,241.01,0.03]
[1757702350256,6.94497611,241.02,241.01,0.7]
[1757702350772,2.79594284,241.02,241.01,0.7]
[1757702352782,6.94497611,241.02,241.01,0.7]
[1757702353077,2.79594284,241.02,241.01,0.7]
[1757702354681,6.94497611,241.02,241.01,0.03]
[1757702354860,7.65497611,241.02,241.01,0.03]
[1757702355175,7.79713768,241.02,241.01,0.03]
[1757702356391,10.56887364,241.02,241.01,0.03]
[1757702356589,11.27887364,241.02,241.01,0.03]
[1757702359780,7.79713768,241.02,241.01,0.03]
[1757702363161,7.08713768,241.02,241.01,0.03]
[1757702363366,7.79713768,241.02,241.01,0.03]
[1757702363773,10.38523775,241.02,241.01,0.03]
[1757702364470,0.14216157,241.01,240.98,0.03]
[1757702364686,2.58810007,240.99,240.98,0.03]
[1757702364866,6.06404291,240.99,240.98,0.03]
[1757702365068,6.96748192,240.99,240.98,0.03]
[1757702365275,11.11703169,240.99,240.98,0.03]
[1757702365685,13.70513176,240.99,240.98,0.03]
[1757702368573,10.43703169,240.99,240.98,0.72]
[1757702368773,2.79594284,240.99,240.98,0.72]
[1757702369487,6.9453252,241.0,240.98,0.72]
[1757702369691,2.79594284,240.99,240.98,0.72]
[1757702370695,6.94549261,240.99,240.98,0.72]
[1757702370901,4.14954977,240.99,240.98,0.72]
[1757702371589,6.94549261,240.99,240.98,0.72]
[1757702371776,2.79594284,240.99,240.98,0.72]
[1757702372610,2.79594284,240.99,240.98,0.9694]
[1757702373900,6.94549261,240.99,240.98,0.9694]
[1757702374687,2.79594284,240.99,240.98,0.9694]
[1757702375910,7.00549261,240.99,240.98,0.9694]
[1757702376493,2.85594284,240.99,240.98,0.9694]
[1757702378204,7.00549261,240.99,240.98,0.9694]
[1757702380706,7.00549261,240.99,240.98,0.2794]
[1757702382690,24.01134826,240.99,240.98,1e-08]
[1757702382892,34.38522269,240.99,240.96,0.03]
[1757702383098,2.73026164,240.97,240.96,0.03]
[1757702383290,5.52620448,240.97,240.96,0.03]
[1757702383494,6.20620448,240.97,240.96,0.03]
[1757702383687,19.80179849,240.97,240.96,0.03]
[1757702384398,23.95169266,240.97,240.96,0.03]
[1757702385507,13.73775558,240.95,240.93,0.03]
[1757702385700,51.30179849,240.95,240.93,0.03]
[1757702386009,51.98179849,240.95,240.93,0.03]
[1757702386225,23.95203712,240.95,240.93,0.03]
[1757702386385,55.45203712,240.95,240.93,0.03]
[1757702386703,33.08834304,240.95,240.93,0.03]
[1757702389908,33.08834304,240.95,240.94,0.86]
[1757702390112,33.08834304,240.95,240.94,0.2]
[1757702392404,33.08834304,240.95,240.94,0.86]
[1757702392916,33.08834304,240.95,240.94,0.2]
[1757702393101,33.14834304,240.95,240.94,0.2]
[1757702394115,36.43644311,240.95,240.94,0.2]
[1757702394500,68.61644311,240.95,240.94,0.2]
[1757702395536,82.21203712,240.95,240.94,0.2]
[1757702396304,82.21203712,240.95,240.93,0.03]
[1757702396503,6.84534774,240.94,240.93,0.03]
[1757702396900,7.54534774,240.94,240.93,0.03]
[1757702397418,6.84534774,240.94,240.93,0.03]
[1757702397595,7.54534774,240.94,240.93,0.03]
[1757702397798,11.69575863,240.94,240.93,0.03]
[1757702398013,10.99575863,240.94,240.93,0.03]
[1757702398613,57.61351421,240.94,240.93,0.03]
[1757702399534,0.14216157,240.93,240.89,0.03]
[1757702399830,47.93826052,240.9,240.89,0.03]
[1757702400029,86.4039423,240.9,240.89,0.03]
[1757702400354,87.1039423,240.9,240.89,0.03]
[1757702400712,83.61420336,240.9,240.89,0.03]
[1757702401030,87.1005249,240.9,240.89,0.03]
[1757702401905,0.14216157,240.89,240.81,0.68]
[1757702402113,0.14216157,240.85,240.81,0.68]
[1757702402313,2.79594284,240.84,240.81,0.68]
[1757702402642,2.07594284,240.86,240.81,0.68]
[1757702402835,62.33110004,240.9,240.81,0.68]
[1757702403401,4.15110004,240.9,240.81,0.68]
[1757702403698,36.33110004,240.9,240.81,0.68]
[1757702403904,46.70885014,240.9,240.81,0.68]
[1757702404829,0.14216157,240.89,240.81,0.68]
[1757702405124,32.18,240.88,240.81,0.68]
[1757702405923,4.15161705,240.87,240.81,0.68]
[1757702406606,14.53065968,240.87,240.81,0.68]
[1757702407120,16.85845401,240.87,240.81,0.68]
[1757702407622,27.23749664,240.87,240.81,0.68]
[1757702407820,27.93749664,240.87,240.79,0.88]
[1757702408212,27.93749664,240.87,240.8,0.68]
[1757702408412,27.93749664,240.87,240.79,0.2]
[1757702409011,27.93749664,240.87,240.79,0.88]
[1757702409406,0.7,240.86,240.79,0.88]
[1757702409613,32.18,240.85,240.79,0.88]
[1757702409843,4.15213419,240.84,240.79,0.88]
[1757702410030,4.85213419,240.84,240.8,0.68]
[1757702410207,37.03213419,240.84,240.8,0.68]
[1757702410402,0.7,240.83,240.79,0.2]
[1757702410627,0.7,240.82,240.79,0.2]
[1757702411638,0.14216157,240.83,240.79,0.2]
[1757702411848,0.7,240.81,240.79,0.2]
[1757702412135,4.15282392,240.8,240.79,0.2]
[1757702412332,4.85282392,240.8,240.79,0.2]
[1757702414239,4.99498549,240.8,240.79,0.2]
[1757702414744,11.82337757,240.8,240.79,0.2]
[1757702415931,25.41897158,240.8,240.79,0.2]
[1757702416133,25.41897158,240.8,240.79,0.88]
[1757702416134,2.77898718,240.8,240.79,0.88]
[1757702416306,0.84216157,240.84,240.79,0.88]
[1757702416307,58.18,240.84,240.79,0.88]
[1757702416517,2.77776343,240.83,240.8,0.68]
[1757702416718,2.77776343,240.83,240.81,0.68]
[1757702416719,32.18,240.83,240.81,0.68]
[1757702417438,12.70683696,240.87,240.82,0.72]
[1757702417652,4.1514447,240.88,240.82,0.72]
[1757702417808,34.95774695,240.89,240.82,0.72]
[1757702418014,0.06,240.9,240.82,0.72]
[1757702418311,9.04291983,240.89,240.82,0.72]
[1757702418512,0.14216157,240.87,240.82,0.72]
[1757702418759,0.14216157,240.85,240.79,0.2]
[1757702418927,0.7,240.84,240.79,0.2]
[1757702419133,0.14216157,240.83,240.79,0.2]
[1757702419336,32.88,240.82,240.79,0.2]
[1757702419519,0.7,240.81,240.79,0.2]
[1757702419839,32.18,240.82,240.79,0.2]
[1757702420069,2.77878672,240.81,240.79,0.2]
[1757702420549,4.15282392,240.8,240.79,0.2]
[1757702421237,4.85282392,240.8,240.79,0.2]
[1757702421438,4.15282392,240.8,240.79,0.2]
[1757702422159,4.15265146,240.81,240.79,0.2]
[1757702422364,36.33265146,240.81,240.79,0.2]
[1757702422865,0.84216157,240.8,240.79,0.2]
[1757702423088,3.62169406,240.8,240.79,0.2]
[1757702423246,2.92169406,240.8,240.79,0.2]
[1757702423847,2.77953249,240.8,240.79,0.2]
[1757702424045,42.56129326,240.82,240.79,0.2]
[1757702424360,2.77953249,240.81,240.79,0.2]
[1757702424746,3.47953249,240.81,240.79,0.2]
[1757702425058,0.84216157,240.8,240.79,0.2]
[1757702425773,33.67109896,240.8,240.79,0.2]
[1757702425951,33.77451798,240.8,240.79,0.2]
[1757702426164,37.82392288,240.8,240.79,0.2]
[1757702426769,70.00392288,240.8,240.79,0.2]
[1757702427866,65.95451798,240.8,240.79,0.2]
[1757702428081,70.00392288,240.8,240.79,0.2]
[1757702429269,57.59951689,240.8,240.79,1e-08]
[1757702430871,53.55011199,240.8,240.79,1e-08]
[1757702431053,57.59951689,240.8,240.79,1e-08]
[1757702432564,39.73775558,240.77,240.76,0.03]
[1757702432762,78.74669297,240.77,240.76,0.03]
[1757702432961,79.44669297,240.77,240.76,0.03]
[1757702433798,30.58410081,240.77,240.76,0.03]
[1757702433952,35.10169406,240.77,240.76,0.03]
[1757702434152,33.77503542,240.77,240.76,0.03]
[1757702434352,7.77503542,240.77,240.76,0.03]
[1757702434560,37.17550293,240.77,240.76,0.03]
[1757702434760,39.95503542,240.77,240.76,0.03]
[1757702435052,44.00444032,240.77,240.76,0.03]
[1757702436089,57.60003433,240.77,240.76,0.03]
[1757702436250,53.55062943,240.77,240.76,0.03]
[1757702436581,57.60003433,240.77,240.76,0.03]
[1757702437674,47.37062943,240.77,240.76,0.03]
[1757702437880,57.60003433,240.77,240.76,0.03]
[1757702438677,39.11287385,240.77,240.76,0.03]
[1757702439044,44.00444032,240.77,240.76,0.03]
[1757702439256,39.81287385,240.77,240.76,0.03]
[1757702439876,39.95503542,240.77,240.76,0.03]
[1757702440375,61.0845049,240.77,240.76,0.03]
[1757702440562,57.60003433,240.77,240.76,0.03]
[1757702440959,39.59559401,240.73,240.71,0.1]
[1757702441175,35.10169406,240.72,240.71,0.1]
[1757702441350,35.80169406,240.72,240.71,0.1]
[1757702441556,35.10169406,240.72,240.71,0.1]
[1757702441764,39.25589811,240.72,240.71,0.1]
[1757702442373,7.07589811,240.72,240.71,0.1]
[1757702442562,62.47636562,240.72,240.71,0.78]
[1757702442760,65.25589811,240.72,240.71,0.1]
[1757702443178,78.85149212,240.72,240.71,0.1]
[1757702443475,82.90089702,240.72,240.71,0.1]
[1757702443784,33.07589811,240.72,240.71,0.1]
[1757702444077,33.07589811,240.72,240.71,0.78]
[1757702444291,32.93373654,240.72,240.71,0.1]
[1757702444762,33.07589811,240.72,240.71,0.1]
[1757702445153,33.77589811,240.72,240.71,0.1]
[1757702445976,33.07589811,240.72,240.71,0.1]
[1757702446678,33.73589811,240.72,240.71,0.1]
[1757702446867,33.73589811,240.72,240.71,0.13]
[1757702447065,33.07589811,240.72,240.71,0.13]
[1757702448564,46.67149212,240.72,240.71,0.13]
[1757702449083,50.72089702,240.72,240.71,0.13]
[1757702450282,46.67149212,240.72,240.71,0.13]
[1757702450978,26.0,240.69,240.68,0.03]
[1757702451689,44.84004034,240.69,240.68,0.03]
[1757702452063,48.88944524,240.69,240.68,0.03]
[1757702452373,53.04416708,240.69,240.68,0.03]
[1757702452676,35.39916817,240.69,240.68,0.03]
[1757702452873,53.04416708,240.69,240.68,0.03]
[1757702453064,48.33476218,240.69,240.68,0.03]
[1757702453272,33.0764159,240.69,240.68,0.71]
[1757702453582,6.93425433,240.69,240.68,0.71]
[1757702453773,4.15472184,240.69,240.68,0.71]
[1757702454086,30.15472184,240.69,240.68,0.71]
[1757702454280,32.93425433,240.69,240.68,0.71]
[1757702454486,32.93425433,240.69,240.68,0.03]
[1757702454661,33.0764159,240.69,240.68,0.03]
[1757702454859,37.1258208,240.69,240.68,0.03]
[1757702456388,33.0764159,240.69,240.68,0.74]
[1757702459889,33.0764159,240.69,240.61,0.1]
[1757702459890,0.14216157,240.64,240.61,0.1]
[1757702460187,26.14216157,240.64,240.61,0.81]
[1757702460690,0.14216157,240.64,240.61,0.81]
[1757702461309,6.7521803,240.63,240.61,0.1]
[1757702461586,4.1557578,240.63,240.61,0.81]
[1757702462179,4.1557578,240.63,240.61,0.1]
[1757702462377,4.29791937,240.63,240.62,0.71]
[1757702462890,4.29791937,240.63,240.61,0.1]
[1757702463272,0.14216157,240.62,240.61,0.1]
[1757702464475,26.14216157,240.62,240.61,0.1]
[1757702464683,30.29809208,240.62,240.61,0.1]
[1757702465189,33.56451458,240.62,240.61,0.1]
[1757702465409,62.09422161,240.62,240.61,0.1]
[1757702465590,63.75759618,240.62,240.61,0.1]
[1757702465901,45.2322051,240.62,240.61,0.81]
[1757702466080,45.9022051,240.62,240.61,0.1]
[1757702466277,45.90298404,240.62,240.61,0.1]
[1757702466792,48.49940654,240.62,240.61,0.13]
[1757702467291,45.23298404,240.62,240.61,0.13]
[1757702467489,47.82940654,240.62,240.61,0.13]
[1757702467670,61.42500055,240.62,240.61,0.13]
[1757702467872,62.09500055,240.62,240.61,0.13]
[1757702468813,58.82857805,240.62,240.61,0.13]
[1757702468979,41.07705353,240.62,240.61,0.84]
[1757702469482,45.23298404,240.62,240.61,0.13]
[1757702469680,45.90298404,240.62,240.61,0.13]
[1757702470592,45.23298404,240.62,240.61,0.13]
[1757702471892,40.93489196,240.62,240.61,0.13]
[1757702472197,12.1524914,240.62,240.61,0.84]
[1757702472394,26.0,240.63,240.61,0.84]
[1757702472697,30.1557669,240.63,240.61,0.84]
[1757702472895,30.1557669,240.63,240.61,0.13]
[1757702473479,0.14216157,240.62,240.61,0.13]
[1757702474000,4.15455232,240.7,240.61,0.84]
[1757702474303,26.0,240.7,240.61,0.84]
[1757702474795,0.14216157,240.66,240.61,0.84]
[1757702474998,0.14216157,240.66,240.62,0.71]
[1757702475200,26.14216157,240.66,240.62,0.71]
[1757702475373,0.06,240.68,240.62,0.71]
[1757702476078,0.06,240.68,240.63,26.0]
[1757702476281,28.56889404,240.78,240.64,0.71]
[1757702476482,32.5,240.8,240.65,13.59559401]
[1757702476681,2.78398943,240.79,240.69,13.59559401]
[1757702476878,0.06,240.8,240.7,0.71]
[1757702477113,26.06,240.8,240.7,0.71]
[1757702477297,0.06,240.8,240.7,33.17]
[1757702477600,0.06,240.8,240.71,0.71]
[1757702478187,0.06,240.83,240.72,13.59559401]
[1757702478411,0.06,240.83,240.73,0.71]
[1757702478708,0.06,240.83,240.74,32.46]
[1757702478908,0.06,240.83,240.75,0.71]
[1757702479208,26.06,240.83,240.75,0.71]
[1757702479703,0.06,240.83,240.75,0.71]
[1757702480704,2.5964225,240.79,240.72,0.71]
[1757702480884,6.74945412,240.79,240.72,0.71]
[1757702481499,2.5964225,240.79,240.72,0.71]
[1757702481724,0.14216157,240.82,240.72,0.71]
[1757702481885,26.0,240.81,240.72,0.71]
[1757702482281,0.81216157,240.8,240.72,0.71]
[1757702482510,3.40858407,240.8,240.72,0.71]
[1757702482888,7.56145541,240.8,240.72,0.71]
[1757702484217,33.56145541,240.8,240.72,0.71]
[1757702485218,26.81216157,240.8,240.72,0.71]
[1757702486398,30.96514224,240.8,240.7,0.67]
[1757702486599,0.14216157,240.78,240.7,0.67]
[1757702486917,0.66,240.77,240.7,0.67]
[1757702488113,30.81349301,240.77,240.7,0.67]
[1757702488403,26.66,240.77,240.7,0.67]
[1757702488790,0.66,240.77,240.7,0.67]
[1757702488991,0.14216157,240.78,240.7,0.67]
[1757702489193,0.14216157,240.79,240.7,0.67]
[1757702489391,26.0,240.77,240.7,0.67]
[1757702489703,26.0,240.77,240.7,33.09]
[1757702490300,4.29516806,240.79,240.7,0.67]
[1757702490490,26.0,240.77,240.7,0.67]
[1757702490688,26.66,240.77,240.7,0.67]
[1757702491811,0.14216157,240.76,240.69,0.67]
[1757702492193,0.14216157,240.78,240.69,0.67]
[1757702493117,26.0,240.79,240.69,0.67]
[1757702493310,0.80216157,240.78,240.69,0.67]
[1757702493490,0.80216157,240.78,240.7,32.42]
[1757702493695,0.66,240.77,240.7,32.42]
[1757702493897,0.66,240.77,240.69,0.67]
[1757702494131,0.66,240.77,240.69,33.09]
[1757702494528,4.81335705,240.77,240.69,33.09]
[1757702494693,30.15308037,240.79,240.7,0.67]
[1757702494893,26.0,240.79,240.7,0.67]
[1757702495087,30.15300928,240.79,240.7,0.67]
[1757702495301,0.66,240.78,240.71,32.44]
[1757702495518,0.66,240.78,240.72,0.67]
[1757702496299,30.15300928,240.79,240.72,0.67]
[1757702496506,26.0,240.79,240.72,0.67]
[1757702498620,26.0,240.79,240.73,32.4]
[1757702498848,26.0,240.79,240.73,33.07]
[1757702499502,30.15300174,240.79,240.73,33.07]
[1757702500411,26.0,240.79,240.73,33.07]
[1757702501924,26.0,240.79,240.73,32.4]
[1757702502133,26.0,240.79,240.73,33.07]
[1757702502308,4.87299577,240.8,240.74,0.67]
[1757702502646,0.72,240.8,240.74,33.05]
[1757702503141,4.8729243,240.8,240.74,33.05]
[1757702504720,0.80216157,240.79,240.69,0.67]
[1757702504926,26.0,240.77,240.7,27.98]
[1757702505122,0.66,240.76,240.7,27.98]
[1757702505841,0.66,240.75,240.71,32.36]
[1757702506021,0.14216157,240.79,240.71,32.36]
[1757702506359,0.66,240.78,240.71,32.36]
[1757702506545,0.66,240.77,240.71,32.36]
[1757702506730,4.15368639,240.75,240.7,0.03]
[1757702507027,0.66,240.74,240.7,0.03]
[1757702507547,0.66,240.73,240.7,0.03]
[1757702508524,4.8141349,240.73,240.7,0.03]